[Event "ESTCC U50 2018"]
[Site "Walbrzych"]
[Date "2018.04.22"]
[Round "9"]
[White "Reuben, Stewart"]
[Black "Wagner-Michel, Annett"]
[Result "0-1"]
[ECO "A22"]
[WhiteElo "2026"]
[BlackElo "2104"]
[Annotator "NA"]
[PlyCount "54"]
[EventDate "2018.??.??"]
[EventCountry "POL"]
[SourceTitle "playchess.com"]
[Source "ChessBase"]
[SourceQuality "1"]
[WhiteTeam "England"]
[BlackTeam "Germany"]
[WhiteTeamCountry "ENG"]
[BlackTeamCountry "GER"]
[TimeControl "40/5400+30:1800+30"]

1. c4 {[%emt 0:00:00]} e5 {[%emt 0:00:08]} 2. Nc3 {[%emt 0:00:00]} Nf6 {[%emt 0:00:03]} 3. g3 {[%emt 0:00:00]} d5 {[%emt 0:00:15]} 4. cxd5 {[%emt 0:00:08]} Nxd5 {[%emt 0:00:05]} 5. Bg2 {[%emt 0:00:11]} Nb6 {[%emt 0:00:28]} 6. d3 {[%emt 0:00:33] LiveBook: 366 Games} Be7 {[%emt 0:01:05]} 7. f4 {[%emt 0:01:02]} exf4 {[%emt 0:13:52] A22: English Opening: 1...e5 2 Nc3 Nf6} 8. Bxf4 {[%emt 0:00:14]} O-O {[%emt 0:00:11]} 9. Nf3 {[%emt 0:02:53]} Nc6 {[%emt 0:06:58]} (9... c6 10. O-O Na6 11. d4 Nc7 12. e4 Bg4 13. Ne2 Ne6 14. Be3 Nc4 15. Bf2 Bxf3 16. Bxf3 {0-1 (39) Piorun,K (2651)-Nasuta,G (2447) Karlsruhe 2017}) 10. Qd2 {[%emt 0:05:44]} f6 $146 {[%emt 0:02:37]} ({Predecessor:} 10... Re8 11. O-O Bf5 12. h3 Qd7 13. Kh2 Rad8 14. Rad1 Bg6 15. d4 {1-0 (41) Nureev,G (2421)-Khassanov,M (2338) St Petersburg 2000}) 11. O-O {[%emt 0:02:39]} Bc5+ {[%emt 0:03:16]} 12. Be3 $2 {[%emt 0:02:29] [#]} (12. Kh1 $1 $11 {and White has nothing to worry.}) 12... Nc4 $1 {[%emt 0:02:51]} 13. dxc4 {[%emt 0:12:19]} Qxd2 {[%emt 0:00:09]} 14. Nxd2 $2 {[%emt 0:00:08]} (14. Bxc5 Qc2 15. Rfc1) 14... Bxe3+ {[%emt 0:00:05]} 15. Rf2 {[%emt 0:01:58]} Bxd2 {[%emt 0:02:26]} 16. Nd5 {[%emt 0:01:17]} Bb4 {[%emt 0:13:01]} 17. Nxc7 {[%emt 0:07:24]} Rb8 {[%emt 0:00:04]} 18. e3 {[%emt 0:01:51]} Bc5 {[%emt 0:06:39]} 19. Re2 {[%emt 0:02:09]} Bg4 {[%emt 0:01:27]} 20. Ree1 {[%emt 0:01:17]} Ne5 {[%emt 0:03:33]} 21. Bd5+ {[%emt 0:04:04]} Kh8 {[%emt 0:00:28]} 22. Kg2 {[%emt 0:00:39]} Nd3 {[%emt 0:06:51]} 23. Rf1 {[%emt 0:01:30]} Be2 {[%emt 0:02:31]} 24. Rfb1 {[%emt 0:01:17]} Bxe3 {[%emt 0:00:40]} 25. Re1 {[%emt 0:01:11]} Bb6 {[%emt 0:08:15]} 26. Rxe2 {[%emt 0:01:25]} Bxc7 {[%emt 0:00:05]} 27. Re7 {[%emt 0:00:42]} Be5 $19 {[%emt 0:02:07]} ({Inferior is} 27... Nxb2 28. Rxc7 Rfc8 29. Rxc8+ Rxc8 30. Rb1 $11) 0-1

[Event "ESTCC U50 2018"]
[Site "Walbrzych"]
[Date "2018.04.22"]
[Round "9"]
[White "De la Orden Alcocer, Alejandro"]
[Black "Strzelecki, Jerzy"]
[Result "1/2-1/2"]
[ECO "A36"]
[WhiteElo "2013"]
[BlackElo "2038"]
[Annotator "NA"]
[PlyCount "52"]
[EventDate "2018.??.??"]
[EventCountry "POL"]
[SourceTitle "playchess.com"]
[Source "ChessBase"]
[SourceQuality "1"]
[WhiteTeam "Spain"]
[BlackTeam "Poland"]
[WhiteTeamCountry "ESP"]
[BlackTeamCountry "POL"]
[TimeControl "40/5400+30:1800+30"]

1. c4 {[%emt 0:00:00]} c5 {[%emt 0:00:36]} 2. Nc3 {[%emt 0:00:09]} Nc6 {[%emt 0:01:07]} 3. g3 {[%emt 0:00:12]} g6 {[%emt 0:00:20]} 4. Bg2 {[%emt 0:00:15]} Bg7 {[%emt 0:00:07]} 5. d3 {[%emt 0:00:58]} d6 {[%emt 0:00:16]} 6. Nf3 {[%emt 0:00:46]} e5 {[%emt 0:01:47]} 7. O-O {[%emt 0:00:18]} Nge7 {[%emt 0:00:10]} 8. Ne1 {[%emt 0:00:26]} Be6 {[%emt 0:00:52]} 9. Nc2 {[%emt 0:00:30]} O-O {[%emt 0:01:08]} 10. Ne3 {[%emt 0:01:21]} Qd7 {[%emt 0:00:31]} 11. Ned5 {[%emt 0:02:01]} Bh3 {[%emt 0:00:38]} 12. Nxe7+ {[%emt 0:00:09] A37: Symmetrical English vs ...g6: 4 Bg2 Bg7 5 Nf3} (12. Rb1 Bxg2 13. Kxg2 f5 14. a3 Rac8 15. f3 Rf7 16. b4 Nxd5 17. Nxd5 Ne7 18. Nxe7+ Rxe7 19. Be3 Qe6 20. bxc5 dxc5 {0-1 (72) Lenderman,A (2611)-Le,Q (2737) chess.com INT 2018}) 12... Nxe7 {[%emt 0:00:24]} 13. e4 {[%emt 0:00:22]} Bxg2 {[%emt 0:00:39]} 14. Kxg2 {[%emt 0:00:02]} f5 {[%emt 0:01:37]} 15. Bg5 $146 {[%emt 0:04:14]} ({Predecessor:} 15. f3 f4 16. g4 h5 17. h3 Kf7 18. Bd2 Rh8 19. Qa4 Nc6 20. Rh1 Rh7 21. Nd5 Rah8 22. Rag1 hxg4 23. hxg4 Rh4 24. Rxh4 Rxh4 25. Qd1 Ne7 {½-½ (25) Sagafos,M (2301)-Lie,K (2523) Gausdal 2006}) 15... Bf6 {[%emt 0:02:01]} 16. Bxf6 {[%emt 0:21:14]} Rxf6 {[%emt 0:00:27]} 17. f3 {[%emt 0:00:44]} Raf8 {[%emt 0:00:22]} 18. Qa4 {[%emt 0:00:24]} Nc6 {[%emt 0:06:56]} 19. Rad1 {[%emt 0:02:00]} Qg7 {[%emt 0:01:59]} 20. Qc2 {[%emt 0:10:42]} Nd4 {[%emt 0:09:06]} 21. Qd2 {[%emt 0:00:53]} fxe4 {[%emt 0:09:44]} 22. fxe4 {[%emt 0:02:22]} Qf7 {[%emt 0:11:54]} (22... Nf3 $5 {[%cal Rf3d2]} 23. Qc1 Qd7 $17) 23. Rxf6 {[%emt 0:04:19]} Qxf6 {[%emt 0:03:42]} 24. Qe3 {[%emt 0:00:13]} Nc2 {[%emt 0:02:08]} 25. Qe2 {[%emt 0:00:14]} Nd4 $11 {[%emt 0:00:30]} 26. Qe3 {[%emt 0:00:07]} Nc2 1/2-1/2

[Event "ESTCC U50 2018"]
[Site "Walbrzych"]
[Date "2018.04.22"]
[Round "9"]
[White "Kierzek, Mira"]
[Black "Scowen, Roger S"]
[Result "1/2-1/2"]
[ECO "D02"]
[WhiteElo "2011"]
[BlackElo "1882"]
[Annotator "NA"]
[PlyCount "44"]
[EventDate "2018.??.??"]
[EventCountry "POL"]
[SourceTitle "playchess.com"]
[Source "ChessBase"]
[SourceQuality "1"]
[WhiteTeam "Germany"]
[BlackTeam "England"]
[WhiteTeamCountry "GER"]
[BlackTeamCountry "ENG"]
[TimeControl "40/5400+30:1800+30"]

{[%evp 18,44,36,32767,32767,25,29,27,47,32767,32767,46,47,32767,39,32767,28,32767,32767,2,0,32767,32767,12,7,12,9,6,4]} 1. Nf3 {[%emt 0:00:00]} d5 {[%emt 0:00:15]} 2. d4 {[%emt 0:00:00]} Nf6 {[%emt 0:00:20]} 3. g3 {[%emt 0:00:10]} c6 {[%emt 0:00:38]} 4. Bg2 {[%emt 0:00:10]} e6 {[%emt 0:00:34]} 5. O-O {[%emt 0:00:29]} Be7 {[%emt 0:00:04]} 6. Nbd2 {[%emt 0:01:34]} O-O {[%emt 0:00:09]} 7. c4 {[%emt 0:00:17]} b6 {[%emt 0:02:15]} 8. Qc2 {[%emt 0:00:29]} Bb7 {[%emt 0:03:50]} 9. e4 {[%emt 0:02:49]} dxe4 {[%emt 0:05:35] LiveBook: 49 Games} 10. Nxe4 {[%emt 0:00:51]} Nbd7 {[%emt 0:03:45]} 11. Rd1 {[%emt 0:05:56]} Nxe4 {[%emt 0:04:22]} 12. Qxe4 {[%emt 0:00:07]} Nf6 {[%emt 0:00:16]} 13. Qe2 {[%emt 0:01:40]} Qc8 {[%emt 0:06:01]} 14. b3 {[%emt 0:05:36]} Re8 {[%emt 0:06:15]} 15. Bb2 {[%emt 0:01:14] E09: Closed Catalan: Main Line: 7 Qc2 c6 8 Nbd2} c5 {[%emt 0:05:55]} 16. Rac1 $146 {[%emt 0:04:33]} ({Predecessor:} 16. Ne5 Bxg2 17. Kxg2 Qc7 18. dxc5 Bxc5 19. Rd3 Rad8 20. Rad1 Rd6 21. Rxd6 Bxd6 22. f3 Rd8 {½-½ (32) Simecek,B (2086)-Radeva,V (2214) Prague 2017}) 16... a5 {[%emt 0:07:23]} 17. dxc5 {[%emt 0:09:12]} bxc5 {[%emt 0:10:24]} 18. Ne5 {[%emt 0:07:51]} Bxg2 {[%emt 0:02:14]} 19. Kxg2 {[%emt 0:00:07]} a4 {[%emt 0:01:28]} 20. Qf3 {[%emt 0:01:36]} Ra6 {[%emt 0:05:03]} 21. Rd3 {[%emt 0:07:35]} Qa8 {[%emt 0:00:46]} 22. Rcd1 {[%emt 0:15:05]} Qxf3+ $11 {[%emt 0:01:59] Rc1} 1/2-1/2

[Event "ESTCC U50 2018"]
[Site "Walbrzych"]
[Date "2018.04.22"]
[Round "9"]
[White "Roth, Martin"]
[Black "Laszewicz, Pawel"]
[Result "0-1"]
[ECO "C26"]
[WhiteElo "2008"]
[BlackElo "2110"]
[Annotator "NA"]
[PlyCount "126"]
[EventDate "2018.??.??"]
[EventCountry "POL"]
[SourceTitle "playchess.com"]
[Source "ChessBase"]
[SourceQuality "1"]
[WhiteTeam "SUI"]
[BlackTeam "POL"]
[WhiteTeamCountry "GER"]
[BlackTeamCountry "POL"]
[TimeControl "40/5400+30:1800+30"]

1. e4 {[%emt 0:00:00]} e5 {[%emt 0:00:57]} 2. Nc3 {[%emt 0:00:11]} Nf6 {[%emt 0:00:08]} 3. g3 {[%emt 0:00:15]} Nc6 {[%emt 0:03:27]} 4. Bg2 {[%emt 0:00:10]} Bc5 {[%emt 0:00:26]} 5. d3 {[%emt 0:02:11]} O-O {[%emt 0:01:11]} 6. Be3 {[%emt 0:02:21] C26: Vienna Game: 2...Nf6, sidelines} (6. Nge2 Nd4 7. O-O d6 8. h3 c6 9. Na4 Nxe2+ 10. Qxe2 Bb4 11. f4 Qa5 12. Nc3 exf4 13. gxf4 Qh5 {1-0 (57) Pridorozhni,A (2563)-Maletin,P (2577) Khanty-Mansiysk 2015}) 6... Bxe3 {[%emt 0:05:18]} 7. fxe3 {[%emt 0:00:08]} d6 {[%emt 0:00:34]} 8. h3 $146 {[%emt 0:00:38]} ({Find the theoretical novelty and annotate with similar games:} 8. Qd2 Rb8 9. Nge2 b5 10. a3 a5 11. O-O b4 12. axb4 axb4 13. Nd5 Nxd5 14. exd5 {½-½ (41) Uritzky,M (2418)-Malachi,A (2218) Israel 2002}) 8... Be6 {[%emt 0:03:17]} 9. Nd5 {[%emt 0:01:43]} Bxd5 {[%emt 0:03:21]} 10. exd5 {[%emt 0:00:01]} Ne7 {[%emt 0:00:28]} 11. e4 {[%emt 0:04:11]} c6 {[%emt 0:01:14]} 12. dxc6 {[%emt 0:02:41]} bxc6 {[%emt 0:02:11]} 13. Ne2 {[%emt 0:00:14]} Qb6 {[%emt 0:05:28]} 14. Qd2 {[%emt 0:02:02]} Qxb2 {[%emt 0:11:55]} 15. O-O {[%emt 0:02:08]} Rab8 {[%emt 0:01:17]} 16. Kh2 {[%emt 0:09:26]} Ng6 {[%emt 0:07:37]} 17. Nc3 {[%emt 0:05:28]} Qa3 {[%emt 0:01:12]} 18. Rab1 {[%emt 0:00:34]} Rb6 {[%emt 0:04:05]} 19. Rb3 {[%emt 0:00:17]} Qa5 {[%emt 0:01:00]} 20. Qe1 {[%emt 0:07:07]} Rxb3 {[%emt 0:03:43]} 21. axb3 {[%emt 0:01:19]} Qc7 {[%emt 0:01:05]} 22. Na4 {[%emt 0:03:44]} c5 {[%emt 0:05:00]} 23. Qd2 {[%emt 0:01:48]} Rd8 {[%emt 0:03:31]} 24. Qc3 {[%emt 0:03:47]} Qe7 {[%emt 0:00:30]} 25. Bf3 {[%emt 0:02:01]} Nf8 {[%emt 0:01:38]} 26. Qa5 {[%emt 0:06:48]} Ne6 {[%emt 0:01:15]} 27. Nc3 {[%emt 0:07:10]} Nd4 {[%emt 0:03:27]} 28. Rf2 {[%emt 0:00:43]} g6 {[%emt 0:01:15]} 29. Nd1 {[%emt 0:10:29]} h5 {[%emt 0:01:33]} 30. Qd2 {[%emt 0:00:39]} Kg7 {[%emt 0:00:22]} 31. Ne3 {[%emt 0:02:07]} Qe6 {[%emt 0:04:13]} 32. h4 {[%emt 0:06:22]} Nxf3+ {[%emt 0:06:02]} 33. Rxf3 {[%emt 0:00:09]} Ng4+ {[%emt 0:00:24]} 34. Kg2 {[%emt 0:00:14]} Nxe3+ {[%emt 0:01:24]} 35. Qxe3 {[%emt 0:00:27]} Qe7 {[%emt 0:01:34]} 36. Rf1 {[%emt 0:00:39]} Rb8 {[%emt 0:02:11]} 37. Qf2 {[%emt 0:01:48]} Rb7 {[%emt 0:01:56]} 38. Qd2 {[%emt 0:00:36]} Rd7 {[%emt 0:00:48]} 39. Qf2 {[%emt 0:00:39]} d5 {[%emt 0:01:35]} 40. Qf3 {[%emt 0:00:00]} dxe4 {[%emt 0:00:46]} 41. dxe4 {[%emt 0:01:22]} Rd2+ 42. Rf2 Rd4 {[%emt 0:03:23]} 43. c3 {[%emt 0:02:41]} Rd7 {[%emt 0:00:55]} 44. Qe3 {[%emt 0:03:13]} Qd6 {[%emt 0:00:52]} 45. Qf3 {[%emt 0:07:54]} Rb7 {[%emt 0:02:16]} 46. Kh2 {[%emt 0:01:41]} f6 {[%emt 0:00:32]} 47. Ra2 {[%emt 0:01:37]} Qe6 {[%emt 0:00:38]} 48. c4 {[%emt 0:00:10]} Rd7 {[%emt 0:01:29]} 49. Kg2 {[%emt 0:01:02]} (49. Qe3 $17) 49... a6 {[%emt 0:00:47]} 50. Qe3 {[%emt 0:04:17]} Qc6 {[%emt 0:00:27]} 51. Kf2 {[%emt 0:03:21]} Rd4 {[%emt 0:00:31]} 52. Re2 {[%emt 0:02:25]} Qd6 {[%emt 0:00:42]} 53. Qf3 {[%emt 0:05:28]} Rd3 {[%emt 0:00:21]} 54. Re3 {[%emt 0:00:06]} Qd4 {[%emt 0:00:37]} 55. Ke2 {[%emt 0:00:09]} Qxe3+ {[%emt 0:06:29]} 56. Qxe3 {[%emt 0:00:07]} Rxe3+ {[%emt 0:00:11]} 57. Kxe3 {[%emt 0:00:03]} a5 {[%emt 0:00:15]} 58. Kf3 {[%emt 0:00:45]} f5 {[%emt 0:00:16]} 59. Ke3 {[%emt 0:00:15]} Kf6 {[%emt 0:00:37]} 60. Kf3 {[%emt 0:00:09]} Ke6 {[%emt 0:00:32]} 61. Ke3 $19 {[%emt 0:00:37]} Kd6 {[%emt 0:00:24]} 62. Kf3 {[%emt 0:00:13]} Kc6 {[%emt 0:00:20]} 63. Ke3 {[%emt 0:00:40]} Kb6 0-1

[Event "ESTCC U50 2018"]
[Site "Walbrzych"]
[Date "2018.04.22"]
[Round "9"]
[White "Czyz, Andrzej"]
[Black "Ruiz Bellon, Manuel"]
[Result "1-0"]
[ECO "A00"]
[WhiteElo "1999"]
[BlackElo "1861"]
[Annotator "NA"]
[PlyCount "93"]
[EventDate "2018.??.??"]
[EventCountry "POL"]
[SourceTitle "playchess.com"]
[Source "ChessBase"]
[SourceQuality "1"]
[WhiteTeam "Poland"]
[BlackTeam "Spain"]
[WhiteTeamCountry "POL"]
[BlackTeamCountry "ESP"]
[TimeControl "40/5400+30:1800+30"]

1. b4 {[%emt 0:00:36]} e5 {[%emt 0:00:41]} 2. Bb2 {[%emt 0:00:03]} e4 {[%emt 0:01:50]} 3. a3 {[%emt 0:00:59]} d5 {[%emt 0:00:07]} 4. d3 {[%emt 0:04:08]} exd3 {[%emt 0:01:16]} 5. exd3 {[%emt 0:01:20]} Nf6 {[%emt 0:00:11]} 6. Be2 {[%emt 0:01:09]} Bd6 {[%emt 0:01:10]} 7. Nf3 {[%emt 0:02:00]} O-O {[%emt 0:00:30]} 8. O-O {[%emt 0:00:16]} Bf5 {[%emt 0:03:04]} 9. Re1 {[%emt 0:03:50]} Nbd7 {[%emt 0:01:16]} 10. Nbd2 {[%emt 0:01:04]} c5 {[%emt 0:03:17]} 11. bxc5 {[%emt 0:03:25]} Bxc5 {[%emt 0:00:58]} 12. Nb3 {[%emt 0:01:51]} Bb6 {[%emt 0:00:46]} 13. Nfd4 {[%emt 0:00:40]} Bg6 {[%emt 0:01:16]} 14. a4 {[%emt 0:02:03]} a6 {[%emt 0:00:36]} 15. Bf3 {[%emt 0:07:25]} Qc7 {[%emt 0:07:44]} 16. Qd2 {[%emt 0:03:59]} Ne5 {[%emt 0:07:59]} 17. h3 {[%emt 0:12:55]} Rac8 {[%emt 0:02:29]} 18. Bd1 {[%emt 0:02:06]} Rfe8 {[%emt 0:09:35]} 19. Kh1 {[%emt 0:08:33]} Qd6 {[%emt 0:08:06]} 20. f4 {[%emt 0:08:42]} Ned7 {[%emt 0:01:57]} 21. Rxe8+ {[%emt 0:01:43]} Rxe8 {[%emt 0:00:03]} 22. Ba3 {[%emt 0:00:27]} Qc7 {[%emt 0:06:36]} 23. Bf3 {[%emt 0:01:22]} h5 {[%emt 0:02:53]} 24. Rf1 {[%emt 0:03:59]} h4 $11 {[%emt 0:02:34]} 25. Bd1 {[%emt 0:07:56]} Ba7 {[%emt 0:06:51]} 26. Qf2 {[%emt 0:04:53]} Qc3 {[%emt 0:05:13]} 27. Bc1 {[%emt 0:02:59]} Qb4 {[%emt 0:03:11]} 28. a5 {[%emt 0:00:17]} Bxd4 {[%emt 0:07:24]} 29. Qxd4 {[%emt 0:00:19]} Qxd4 {[%emt 0:01:54]} 30. Nxd4 {[%emt 0:00:01]} Nh5 {[%emt 0:00:38]} 31. Bxh5 {[%emt 0:01:55]} Bxh5 {[%emt 0:00:03]} 32. Bd2 {[%emt 0:00:22]} f6 {[%emt 0:03:39]} 33. f5 {[%emt 0:02:02]} Ne5 {[%emt 0:02:05]} 34. Rb1 {[%emt 0:01:00]} Nc6 {[%emt 0:00:55]} 35. Ne6 {[%emt 0:02:58]} Re7 {[%emt 0:00:03]} 36. Nc5 {[%emt 0:01:09]} Re2 {[%emt 0:00:41]} 37. Nb3 {[%emt 0:00:42]} Rf2 {[%emt 0:02:59]} 38. Kg1 {[%emt 0:00:20]} Rxf5 {[%emt 0:00:26]} 39. d4 {[%emt 0:00:20]} Be2 {[%emt 0:01:10]} 40. Bc3 {[%emt 0:00:00]} Bb5 {[%emt 0:00:45]} 41. Nc5 {[%emt 0:03:24]} Nd8 {[%emt 0:02:08]} 42. Nxb7 {[%emt 0:01:50]} Nxb7 {[%emt 0:00:27]} 43. Rxb5 {[%emt 0:00:08]} axb5 {[%emt 0:03:44]} 44. a6 {[%emt 0:00:03]} Nd6 {[%emt 0:00:18]} 45. a7 {[%emt 0:00:06]} Ne4 {[%emt 0:00:11]} 46. a8=Q+ {[%emt 0:00:28]} Kh7 {[%emt 0:00:10]} 47. Be1 {[%emt 0:00:17]} 1-0

[Event "ESTCC U50 2018"]
[Site "Walbrzych"]
[Date "2018.04.22"]
[Round "9"]
[White "Sihvonen, Tero"]
[Black "Van de Wynkele, Herman"]
[Result "0-1"]
[ECO "B52"]
[WhiteElo "1988"]
[BlackElo "2048"]
[Annotator "NA"]
[PlyCount "106"]
[EventDate "2018.??.??"]
[EventCountry "POL"]
[SourceTitle "playchess.com"]
[Source "ChessBase"]
[SourceQuality "1"]
[WhiteTeam "Finland"]
[BlackTeam "Belgium"]
[WhiteTeamCountry "FIN"]
[BlackTeamCountry "BEL"]
[TimeControl "40/5400+30:1800+30"]

1. e4 {[%emt 0:00:00]} c5 {[%emt 0:00:04]} 2. Nf3 {[%emt 0:00:00]} d6 {[%emt 0:00:20]} 3. Bb5+ {[%emt 0:00:00]} Bd7 {[%emt 0:00:11]} 4. a4 {[%emt 0:00:17]} Nc6 {[%emt 0:02:19]} 5. c3 {[%emt 0:00:57] B52: Sicilian: Moscow Variation with 3...Bd7} (5. O-O g6 6. c3 Nf6 7. d4 cxd4 8. cxd4 Bg7 9. Nc3 O-O 10. h3 a6 11. Bc4 Rc8 12. Re1 Ne8 13. Bb3 Na5 {1-0 (66) Caruana,F (2799)-Nepomniachtchi,I (2729) London 2017}) 5... Nf6 {[%emt 0:00:12]} 6. Bd3 {[%emt 0:01:19]} g6 $146 {[%emt 0:00:23]} ({Predecessor:} 6... Bg4 7. Bc2 Ne5 8. d4 Nxf3+ 9. gxf3 Bh5 10. a5 e6 11. Ba4+ Nd7 12. dxc5 dxc5 {0-1 (34) Grosse,M (1983)-Jacobsen,T (1641) Graz 2014}) 7. O-O {[%emt 0:00:20]} Bg7 {[%emt 0:00:03]} 8. Bc2 {[%emt 0:00:39]} O-O {[%emt 0:01:41]} 9. d4 {[%emt 0:02:53]} cxd4 {[%emt 0:07:00]} 10. Nxd4 {[%emt 0:01:23]} d5 {[%emt 0:01:26]} 11. exd5 {[%emt 0:03:40]} Nxd5 {[%emt 0:00:18]} 12. Ne2 {[%emt 0:00:12]} Be6 {[%emt 0:06:46]} 13. Na3 {[%emt 0:03:20]} f5 {[%emt 0:06:59]} 14. Nb5 {[%emt 0:01:15]} Bf7 {[%emt 0:00:37]} 15. Nf4 {[%emt 0:10:19]} a6 {[%emt 0:12:49]} 16. Na3 {[%emt 0:02:30]} Nxf4 {[%emt 0:04:22]} 17. Bxf4 {[%emt 0:00:20]} e5 {[%emt 0:00:11]} 18. Qxd8 {[%emt 0:05:27]} Rfxd8 {[%emt 0:00:35]} 19. Bg5 {[%emt 0:00:16]} Re8 {[%emt 0:01:31]} 20. Rad1 {[%emt 0:00:51]} Be6 {[%emt 0:06:22]} 21. Rd6 {[%emt 0:01:25]} h6 {[%emt 0:01:36]} 22. Be3 {[%emt 0:01:24]} Bf8 {[%emt 0:04:44]} 23. Rxe6 {[%emt 0:00:44]} Rxe6 {[%emt 0:00:07]} 24. Bb3 {[%emt 0:00:21]} Rae8 {[%emt 0:01:55]} 25. Rd1 {[%emt 0:12:01]} f4 {[%emt 0:05:52]} 26. Bb6 {[%emt 0:00:33]} Bxa3 {[%emt 0:00:42]} 27. bxa3 {[%emt 0:00:14]} Kf7 {[%emt 0:00:09]} 28. Rd7+ {[%emt 0:00:15]} R8e7 {[%emt 0:00:22]} 29. Rd1 {[%emt 0:03:45]} Ke8 {[%emt 0:00:31]} 30. Bxe6 {[%emt 0:03:43]} Rxe6 {[%emt 0:00:11]} 31. f3 {[%emt 0:00:41]} g5 {[%emt 0:07:16]} 32. Kf2 {[%emt 0:03:40]} h5 {[%emt 0:01:18]} 33. h3 $11 {[%emt 0:00:30]} Rg6 {[%emt 0:09:21]} 34. a5 {[%emt 0:00:31]} g4 {[%emt 0:00:36]} 35. hxg4 {[%emt 0:00:13]} hxg4 {[%emt 0:00:07]} 36. Rh1 {[%emt 0:01:23]} gxf3 {[%emt 0:01:27]} 37. gxf3 {[%emt 0:00:31]} Rg7 {[%emt 0:00:10]} 38. Rh2 {[%emt 0:03:07]} Rd7 {[%emt 0:02:35]} 39. Ke2 {[%emt 0:00:57]} Kf7 {[%emt 0:00:16]} 40. Rh7+ {[%emt 0:00:00]} Ke6 {[%emt 0:00:07]} 41. Rh6+ {[%emt 0:10:22]} Kf5 {[%emt 0:00:35]} 42. Rh5+ {[%emt 0:01:18]} Kg6 {[%emt 0:00:46]} 43. Rh8 {[%emt 0:00:22]} Ne7 {[%emt 0:01:44]} 44. Rd8 {[%emt 0:04:03]} Rxd8 {[%emt 0:02:51]} 45. Bxd8 {[%emt 0:00:14]} Nd5 {[%emt 0:03:03]} 46. Kd3 {[%emt 0:01:11]} Kf5 {[%emt 0:02:01]} 47. a4 {[%emt 0:07:47]} Ne3 {[%emt 0:00:47]} 48. Bb6 {[%emt 0:04:38]} Nd5 {[%emt 0:00:18]} 49. Kd2 {[%emt 0:00:40]} Nxb6 {[%emt 0:00:25]} 50. axb6 {[%emt 0:00:12]} e4 {[%emt 0:00:01]} 51. fxe4+ {[%emt 0:01:46]} Kxe4 {[%emt 0:00:10]} 52. Ke2 {[%emt 0:00:06]} a5 {[%emt 0:00:26]} 53. Kf2 {[%emt 0:00:15]} Kd3 {[%emt 0:00:56]} 0-1

[Event "ESTCC U50 2018"]
[Site "Walbrzych"]
[Date "2018.04.22"]
[Round "9"]
[White "Pietinen, Pekka"]
[Black "Grabuzova, Tatiana"]
[Result "0-1"]
[ECO "A40"]
[WhiteElo "1983"]
[BlackElo "2311"]
[Annotator "NA"]
[PlyCount "43"]
[EventDate "2018.??.??"]
[EventCountry "POL"]
[SourceTitle "playchess.com"]
[Source "ChessBase"]
[SourceQuality "1"]
[WhiteTeam "Finland"]
[BlackTeam "Russia"]
[WhiteTeamCountry "FIN"]
[BlackTeamCountry "RUS"]
[TimeControl "40/5400+30:1800+30"]

{[%evp 13,38,4,32767,14,32767,13,26,4,32767,32767,32767,32767,32767,-26,0,0,32767,-19,25,35,70,58,93,72,118,13,144]} 1. d4 {[%emt 0:00:57]} e6 {[%emt 0:00:12]} 2. Bf4 {[%emt 0:01:02]} f5 {[%emt 0:02:32]} 3. Nf3 {[%emt 0:03:28]} Nf6 {[%emt 0:00:18]} 4. e3 {[%emt 0:00:29]} b6 {[%emt 0:01:31]} 5. Be2 {[%emt 0:02:18]} Bb7 {[%emt 0:01:49]} 6. h3 {[%emt 0:02:14] A80: Dutch Defence: Unusual White second moves} (6. O-O Be7 7. h3 O-O 8. c4 Ne4 9. Nfd2 Nxd2 10. Nxd2 d6 11. Bf3 Bxf3 12. Nxf3 Nd7 13. Qa4 a5 {½-½ (30) Shankland,S (2656)-Ivanchuk,V (2733) Edmonton 2015}) 6... g6 {[%emt 0:04:47]} 7. O-O {[%emt 0:03:58]} Bg7 {[%emt 0:00:17]} 8. c4 {[%emt 0:05:38]} O-O {[%emt 0:01:08]} 9. Nc3 {[%emt 0:00:12]} d6 $146 {[%emt 0:03:58]} ({Find the theoretical novelty and annotate with similar games:} 9... Ne4 10. Rc1 d6 11. Bh2 Nxc3 12. Rxc3 Nd7 13. b4 a5 {1-0 (52) Lakdawala,C (2438)-Yee,K (2293) Los Angeles 1999}) 10. a4 {[%emt 0:04:43]} Ne4 {[%emt 0:25:21]} 11. Bh2 {[%emt 0:09:36]} Nxc3 {[%emt 0:03:45]} 12. bxc3 {[%emt 0:00:04]} Qe7 {[%emt 0:07:55]} 13. Nd2 {[%emt 0:06:07]} e5 {[%emt 0:03:22]} 14. a5 {[%emt 0:04:39]} Nd7 {[%emt 0:06:17]} 15. Nb3 {[%emt 0:05:01]} a6 {[%emt 0:05:11]} 16. Bf3 {[%emt 0:04:38]} e4 {[%emt 0:00:12]} 17. Be2 {[%emt 0:00:02]} g5 {[%emt 0:05:05]} 18. Qd2 {[%emt 0:01:12]} Bh6 {[%emt 0:01:27]} 19. c5 {[%emt 0:06:45]} ({White should try} 19. axb6 $16 cxb6 20. Rfb1) 19... dxc5 $16 {[%emt 0:08:34]} ({Black should play} 19... bxc5 $11 20. dxc5 Nxc5) 20. Bxc7 {[%emt 0:03:14]} b5 {[%emt 0:00:25]} 21. Nxc5 {[%emt 0:02:45]} Nxc5 {[%emt 0:00:19]} 22. dxc5 0-1